[Event "Titled Tuesday Blitz March 14 Late 2023"]
[White "Fernandez Garcia, Gumersindo"]
[Black "Gatterer, Florian"]
[WhiteFideId "24516740"]
[BlackFideId "811688"]
[WhiteElo "2093"]
[BlackElo "2221"]
[Result "0-1"]
[Round "09"]
[TimeControl "180+2"]
[Date "2023.03.14"]
[WhiteClock "0:00:07"]
[BlackClock "0:00:07"]

1. e4 {[%clk 0:03:00]}  c5 {[%clk 0:02:59]} 2. a3 {[%clk 0:02:57]}  g6 {[%clk 0:02:57]} 3. Nc3 {[%clk 0:02:56]}  Bg7 {[%clk 0:02:56]} 4. f4 {[%clk 0:02:57]}  Nc6 {[%clk 0:02:55]} 5. Nf3 {[%clk 0:02:57]}  e6 {[%clk 0:02:49]} 6. g3 {[%clk 0:02:49]}  Nge7 {[%clk 0:02:48]} 7. Bg2 {[%clk 0:02:49]}  O-O {[%clk 0:02:48]} 8. O-O {[%clk 0:02:49]}  d5 {[%clk 0:02:44]} 9. d3 {[%clk 0:02:45]}  b6 {[%clk 0:02:43]} 10. e5 {[%clk 0:02:39]}  Ba6 {[%clk 0:02:33]} 11. Bd2 {[%clk 0:02:36]}  Rc8 {[%clk 0:02:33]} 12. Ne2 {[%clk 0:02:35]}  d4 {[%clk 0:02:26]} 13. Ng5 {[%clk 0:02:35]}  Bb7 {[%clk 0:02:20]} 14. Ne4 {[%clk 0:02:34]}  Nf5 {[%clk 0:02:20]} 15. g4 {[%clk 0:02:21]}  Nh4 {[%clk 0:02:18]} 16. Nd6 {[%clk 0:02:16]}  Nxg2 {[%clk 0:02:08]} 17. Kxg2 {[%clk 0:01:40]}  Ba8 {[%clk 0:01:46]} 18. Kg1 {[%clk 0:01:39]}  Rc7 {[%clk 0:01:42]} 19. Ng3 {[%clk 0:01:39]}  Ne7 {[%clk 0:01:33]} 20. Nge4 {[%clk 0:01:35]}  Nc8 {[%clk 0:01:32]} 21. g5 {[%clk 0:01:34]}  Nxd6 {[%clk 0:01:31]} 22. Nxd6 {[%clk 0:01:32]}  Rd7 {[%clk 0:01:25]} 23. Qg4 {[%clk 0:01:30]}  Rxd6 {[%clk 0:01:25]} 24. exd6 {[%clk 0:01:31]}  Qxd6 {[%clk 0:01:26]} 25. Rae1 {[%clk 0:01:28]}  Rc8 {[%clk 0:01:17]} 26. h4 {[%clk 0:01:26]}  c4 {[%clk 0:01:15]} 27. Bb4 {[%clk 0:01:22]}  Qd5 {[%clk 0:01:00]} 28. Re2 {[%clk 0:00:58]}  a5 {[%clk 0:00:53]} 29. Bd2 {[%clk 0:00:57]}  cxd3 {[%clk 0:00:51]} 30. cxd3 {[%clk 0:00:58]}  Qh1+ {[%clk 0:00:36]} 31. Kf2 {[%clk 0:00:58]}  Qd5 {[%clk 0:00:36]} 32. h5 {[%clk 0:00:54]}  Qd7 {[%clk 0:00:33]} 33. hxg6 {[%clk 0:00:50]}  hxg6 {[%clk 0:00:33]} 34. b4 {[%clk 0:00:49]}  a4 {[%clk 0:00:32]} 35. Kg3 {[%clk 0:00:39]}  Qb5 {[%clk 0:00:31]} 36. Rf3 {[%clk 0:00:34]}  Bxf3 {[%clk 0:00:29]} 37. Qxf3 {[%clk 0:00:34]}  Qc6 {[%clk 0:00:27]} 38. Be1 {[%clk 0:00:32]}  Qxf3+ {[%clk 0:00:27]} 39. Kxf3 {[%clk 0:00:32]}  Rc1 {[%clk 0:00:27]} 40. Ke4 {[%clk 0:00:31]}  b5 {[%clk 0:00:24]} 41. Bf2 {[%clk 0:00:28]}  Rc3 {[%clk 0:00:23]} 42. Ra2 {[%clk 0:00:26]}  Rc1 {[%clk 0:00:18]} 43. Bxd4 {[%clk 0:00:26]}  Re1+ {[%clk 0:00:18]} 44. Be3 {[%clk 0:00:26]}  Kf8 {[%clk 0:00:17]} 45. Kf3 {[%clk 0:00:26]}  Ke7 {[%clk 0:00:17]} 46. Bf2 {[%clk 0:00:25]}  Rd1 {[%clk 0:00:16]} 47. Ke2 {[%clk 0:00:24]}  Rb1 {[%clk 0:00:16]} 48. Be3 {[%clk 0:00:23]}  Rb2+ {[%clk 0:00:16]} 49. Rxb2 {[%clk 0:00:20]}  Bxb2 {[%clk 0:00:17]} 50. Bd2 {[%clk 0:00:20]}  Bxa3 {[%clk 0:00:17]} 51. Bc3 {[%clk 0:00:18]}  Bc1 {[%clk 0:00:15]} 52. Bf6+ {[%clk 0:00:17]}  Kd7 {[%clk 0:00:15]} 53. Be5 {[%clk 0:00:17]}  Kc6 {[%clk 0:00:10]} 54. Kd1 {[%clk 0:00:17]}  Be3 {[%clk 0:00:10]} 55. Kc2 {[%clk 0:00:18]}  Kd5 {[%clk 0:00:09]} 56. Kc3 {[%clk 0:00:18]}  Bf2 {[%clk 0:00:08]} 57. Kc2 {[%clk 0:00:18]}  Bd4 {[%clk 0:00:08]} 58. Bc7 {[%clk 0:00:14]}  Be3 {[%clk 0:00:05]} 59. Be5 {[%clk 0:00:13]}  Bd4 {[%clk 0:00:05]} 60. Bb8 {[%clk 0:00:12]}  e5 {[%clk 0:00:05]} 61. fxe5 {[%clk 0:00:09]}  Bxe5 {[%clk 0:00:06]} 62. Ba7 {[%clk 0:00:10]}  Bd4 {[%clk 0:00:06]} 63. Bb8 {[%clk 0:00:11]}  Ke6 {[%clk 0:00:06]} 64. Bc7 {[%clk 0:00:09]}  Kd5 {[%clk 0:00:06]} 65. Bd8 {[%clk 0:00:09]}  Be3 {[%clk 0:00:06]} 66. Kc3 {[%clk 0:00:09]}  Bf4 {[%clk 0:00:05]} 67. d4 {[%clk 0:00:09]}  Be3 {[%clk 0:00:04]} 68. Bf6 {[%clk 0:00:09]}  Bf4 {[%clk 0:00:04]} 69. Kd3 {[%clk 0:00:08]}  Bd6 {[%clk 0:00:04]} 70. Kc3 {[%clk 0:00:08]}  a3 {[%clk 0:00:05]} 71. Kb3 {[%clk 0:00:08]}  a2 {[%clk 0:00:04]} 72. Kxa2 {[%clk 0:00:09]}  Bxb4 {[%clk 0:00:05]} 73. Kb3 {[%clk 0:00:09]}  Bd6 {[%clk 0:00:05]} 74. Kc3 {[%clk 0:00:10]}  Bf8 {[%clk 0:00:05]} 75. Kd3 {[%clk 0:00:10]}  Bd6 {[%clk 0:00:05]} 76. Bd8 {[%clk 0:00:10]}  Bf8 {[%clk 0:00:05]} 77. Ba5 {[%clk 0:00:10]}  Bd6 {[%clk 0:00:05]} 78. Bd2 {[%clk 0:00:11]}  Be7 {[%clk 0:00:05]} 79. Ke3 {[%clk 0:00:11]}  Bd6 {[%clk 0:00:05]} 80. Bc3 {[%clk 0:00:09]}  Kc4 {[%clk 0:00:05]} 81. Bb2 {[%clk 0:00:08]}  b4 {[%clk 0:00:05]} 82. Ke4 {[%clk 0:00:07]}  Kb3 {[%clk 0:00:06]} 83. Bc1 {[%clk 0:00:07]}  Kc2 {[%clk 0:00:06]} 84. Bf4 {[%clk 0:00:04]}  Bxf4 {[%clk 0:00:05]} 85. Kxf4 {[%clk 0:00:05]}  b3 {[%clk 0:00:05]} 86. d5 {[%clk 0:00:06]}  b2 {[%clk 0:00:06]} 87. d6 {[%clk 0:00:07]}  b1=Q {[%clk 0:00:07]} 88. Ke5 {[%clk 0:00:07]}  Qb8 {[%clk 0:00:06]} 89. Kd5 {[%clk 0:00:07]}  Qd8 {[%clk 0:00:07]} 0-1


[Site "https://www.chess.com"]

[Event "Titled Tuesday Blitz March 14 Late 2023"]
[White "Zamorano, Jorge"]
[Black "Fernandez, Maria Florencia"]
[WhiteFideId "173770"]
[BlackFideId "116459"]
[WhiteElo "2331"]
[BlackElo "2155"]
[Result "0-1"]
[Round "09"]
[TimeControl "180+2"]
[Date "2023.03.14"]
[WhiteClock "0:00:23"]
[BlackClock "0:00:08"]

1. e4 {[%clk 0:02:55]}  c5 {[%clk 0:02:59]} 2. Nf3 {[%clk 0:02:55]}  d6 {[%clk 0:02:59]} 3. d4 {[%clk 0:02:55]}  cxd4 {[%clk 0:03:00]} 4. Nxd4 {[%clk 0:02:56]}  Nf6 {[%clk 0:03:01]} 5. Nc3 {[%clk 0:02:56]}  g6 {[%clk 0:03:02]} 6. Bc4 {[%clk 0:02:56]}  Bg7 {[%clk 0:03:02]} 7. O-O {[%clk 0:02:56]}  O-O {[%clk 0:03:02]} 8. h3 {[%clk 0:02:56]}  Nc6 {[%clk 0:03:02]} 9. Nf3 {[%clk 0:02:57]}  Bd7 {[%clk 0:02:59]} 10. Re1 {[%clk 0:02:57]}  Rc8 {[%clk 0:02:59]} 11. Bb3 {[%clk 0:02:58]}  Na5 {[%clk 0:02:59]} 12. Bg5 {[%clk 0:02:58]}  h6 {[%clk 0:02:53]} 13. Bh4 {[%clk 0:02:56]}  Nc4 {[%clk 0:02:42]} 14. Bxc4 {[%clk 0:02:55]}  Rxc4 {[%clk 0:02:42]} 15. e5 {[%clk 0:02:56]}  dxe5 {[%clk 0:02:30]} 16. Nxe5 {[%clk 0:02:56]}  Rxh4 {[%clk 0:02:26]} 17. Qf3 {[%clk 0:02:35]}  Rb4 {[%clk 0:01:37]} 18. Rad1 {[%clk 0:02:30]}  e6 {[%clk 0:01:14]} 19. a3 {[%clk 0:02:01]}  Rxb2 {[%clk 0:01:07]} 20. Ne4 {[%clk 0:02:01]}  Nxe4 {[%clk 0:01:01]} 21. Nxd7 {[%clk 0:01:42]}  Ng5 {[%clk 0:00:49]} 22. Qg3 {[%clk 0:01:36]}  Re8 {[%clk 0:00:44]} 23. h4 {[%clk 0:01:26]}  Nh7 {[%clk 0:00:44]} 24. h5 {[%clk 0:01:26]}  g5 {[%clk 0:00:41]} 25. Qe3 {[%clk 0:01:25]}  Qa5 {[%clk 0:00:34]} 26. Nc5 {[%clk 0:01:15]}  Rb5 {[%clk 0:00:27]} 27. Ne4 {[%clk 0:01:15]}  Re5 {[%clk 0:00:20]} 28. Qd3 {[%clk 0:00:52]}  Rd5 {[%clk 0:00:19]} 29. Qb3 {[%clk 0:00:50]}  Rxd1 {[%clk 0:00:18]} 30. Rxd1 {[%clk 0:00:51]}  Qb6 {[%clk 0:00:16]} 31. Qa4 {[%clk 0:00:52]}  Rf8 {[%clk 0:00:15]} 32. Rd7 {[%clk 0:00:49]}  Nf6 {[%clk 0:00:14]} 33. Nxf6+ {[%clk 0:00:44]}  Bxf6 {[%clk 0:00:15]} 34. g3 {[%clk 0:00:44]}  Qb1+ {[%clk 0:00:15]} 35. Kg2 {[%clk 0:00:43]}  Qb6 {[%clk 0:00:15]} 36. Qe4 {[%clk 0:00:43]}  Qc6 {[%clk 0:00:15]} 37. Qxc6 {[%clk 0:00:43]}  bxc6 {[%clk 0:00:16]} 38. Rxa7 {[%clk 0:00:43]}  c5 {[%clk 0:00:14]} 39. Rc7 {[%clk 0:00:42]}  Bd4 {[%clk 0:00:14]} 40. c3 {[%clk 0:00:43]}  Bxc3 {[%clk 0:00:14]} 41. Rxc5 {[%clk 0:00:43]}  Bd4 {[%clk 0:00:14]} 42. Rc4 {[%clk 0:00:44]}  e5 {[%clk 0:00:14]} 43. f4 {[%clk 0:00:44]}  Ra8 {[%clk 0:00:12]} 44. a4 {[%clk 0:00:42]}  Kg7 {[%clk 0:00:12]} 45. Kf3 {[%clk 0:00:41]}  gxf4 {[%clk 0:00:09]} 46. gxf4 {[%clk 0:00:41]}  Kf6 {[%clk 0:00:08]} 47. Ke4 {[%clk 0:00:41]}  Kg7 {[%clk 0:00:05]} 48. fxe5 {[%clk 0:00:40]}  Bb2 {[%clk 0:00:06]} 49. Rb4 {[%clk 0:00:37]}  Ra5 {[%clk 0:00:05]} 50. Rxb2 {[%clk 0:00:36]}  Rxa4+ {[%clk 0:00:06]} 51. Kf5 {[%clk 0:00:37]}  Rh4 {[%clk 0:00:05]} 52. Rb7 {[%clk 0:00:24]}  Rxh5+ {[%clk 0:00:06]} 53. Kf4 {[%clk 0:00:25]}  Rh1 {[%clk 0:00:05]} 54. e6 {[%clk 0:00:23]}  Rf1+ {[%clk 0:00:05]} 55. Kg3 {[%clk 0:00:24]}  Kg6 {[%clk 0:00:05]} 56. exf7 {[%clk 0:00:23]}  Rxf7 {[%clk 0:00:05]} 57. Rxf7 {[%clk 0:00:22]}  Kxf7 {[%clk 0:00:05]} 58. Kg4 {[%clk 0:00:23]}  Kg6 {[%clk 0:00:06]} 59. Kh4 {[%clk 0:00:23]}  h5 {[%clk 0:00:05]} 60. Kg3 {[%clk 0:00:24]}  Kg5 {[%clk 0:00:06]} 61. Kh3 {[%clk 0:00:24]}  h4 {[%clk 0:00:06]} 62. Kh2 {[%clk 0:00:25]}  Kg4 {[%clk 0:00:07]} 63. Kg2 {[%clk 0:00:25]}  h3+ {[%clk 0:00:07]} 64. Kh2 {[%clk 0:00:25]}  Kh4 {[%clk 0:00:08]} 65. Kh1 {[%clk 0:00:23]}  Kg3 {[%clk 0:00:08]} 0-1


[Site "https://www.chess.com"]

[Event "Titled Tuesday Blitz March 14 Late 2023"]
[White "Reprintsev, Alexander"]
[Black "Stelmaszyk, Nico"]
[WhiteFideId "14100541"]
[BlackFideId "16200462"]
[WhiteElo "2229"]
[BlackElo "2255"]
[Result "0-1"]
[Round "09"]
[TimeControl "180+2"]
[Date "2023.03.14"]
[WhiteClock "0:01:14"]
[BlackClock "0:01:57"]

1. e4 {[%clk 0:02:54]}  c5 {[%clk 0:02:58]} 2. b3 {[%clk 0:02:54]}  Nc6 {[%clk 0:02:53]} 3. Bb2 {[%clk 0:02:54]}  b6 {[%clk 0:02:53]} 4. Nf3 {[%clk 0:02:52]}  e6 {[%clk 0:02:53]} 5. d4 {[%clk 0:02:50]}  cxd4 {[%clk 0:02:52]} 6. Nxd4 {[%clk 0:02:50]}  Bb7 {[%clk 0:02:51]} 7. Nc3 {[%clk 0:02:45]}  Nxd4 {[%clk 0:02:50]} 8. Qxd4 {[%clk 0:02:45]}  Nf6 {[%clk 0:02:50]} 9. O-O-O {[%clk 0:02:43]}  Bc5 {[%clk 0:02:49]} 10. Qd2 {[%clk 0:02:43]}  O-O {[%clk 0:02:49]} 11. f3 {[%clk 0:02:42]}  d5 {[%clk 0:02:48]} 12. exd5 {[%clk 0:02:42]}  Nxd5 {[%clk 0:02:49]} 13. Nxd5 {[%clk 0:02:41]}  Qxd5 {[%clk 0:02:50]} 14. Qxd5 {[%clk 0:02:39]}  Bxd5 {[%clk 0:02:51]} 15. c4 {[%clk 0:02:38]}  Bc6 {[%clk 0:02:51]} 16. Kc2 {[%clk 0:02:36]}  a5 {[%clk 0:02:51]} 17. Be2 {[%clk 0:02:36]}  Rfd8 {[%clk 0:02:47]} 18. a3 {[%clk 0:02:34]}  f6 {[%clk 0:02:40]} 19. Kc3 {[%clk 0:02:28]}  e5 {[%clk 0:02:37]} 20. b4 {[%clk 0:02:27]}  axb4+ {[%clk 0:02:36]} 21. axb4 {[%clk 0:02:27]}  Bd4+ {[%clk 0:02:37]} 22. Kc2 {[%clk 0:02:27]}  Ba4+ {[%clk 0:02:37]} 23. Kc1 {[%clk 0:02:24]}  Bxd1 {[%clk 0:02:37]} 24. Bxd1 {[%clk 0:02:20]}  Kf7 {[%clk 0:02:34]} 25. Bb3 {[%clk 0:02:19]}  Bxb2+ {[%clk 0:02:34]} 26. Kxb2 {[%clk 0:02:19]}  Rd2+ {[%clk 0:02:35]} 27. Kc3 {[%clk 0:02:19]}  Rxg2 {[%clk 0:02:35]} 28. c5+ {[%clk 0:02:19]}  Ke7 {[%clk 0:02:35]} 29. cxb6 {[%clk 0:02:18]}  Rb8 {[%clk 0:02:35]} 30. Ra1 {[%clk 0:02:16]}  Rxb6 {[%clk 0:02:26]} 31. Ra7+ {[%clk 0:02:16]}  Kd6 {[%clk 0:02:26]} 32. Bc4 {[%clk 0:02:10]}  Rf2 {[%clk 0:02:24]} 33. b5 {[%clk 0:02:07]}  Rxf3+ {[%clk 0:02:22]} 34. Kb4 {[%clk 0:02:07]}  g5 {[%clk 0:02:20]} 35. Rxh7 {[%clk 0:02:06]}  e4 {[%clk 0:02:19]} 36. Rh8 {[%clk 0:01:58]}  Rb7 {[%clk 0:02:16]} 37. Rd8+ {[%clk 0:01:51]}  Rd7 {[%clk 0:02:15]} 38. Re8 {[%clk 0:01:50]}  Re7 {[%clk 0:02:14]} 39. Rd8+ {[%clk 0:01:50]}  Ke5 {[%clk 0:02:15]} 40. b6 {[%clk 0:01:48]}  e3 {[%clk 0:02:13]} 41. Kc5 {[%clk 0:01:43]}  Rf4 {[%clk 0:02:10]} 42. Rd5+ {[%clk 0:01:39]}  Ke4 {[%clk 0:02:09]} 43. Be2 {[%clk 0:01:36]}  Rf2 {[%clk 0:02:08]} 44. Rd4+ {[%clk 0:01:35]}  Ke5 {[%clk 0:02:06]} 45. Rd5+ {[%clk 0:01:34]}  Kf4 {[%clk 0:02:06]} 46. Rd4+ {[%clk 0:01:33]}  Ke5 {[%clk 0:02:02]} 47. Rd5+ {[%clk 0:01:33]}  Ke6 {[%clk 0:02:03]} 48. Bc4 {[%clk 0:01:28]}  Rf5 {[%clk 0:01:57]} 49. Kc6 {[%clk 0:01:24]}  Rxd5 {[%clk 0:01:57]} 50. Bxd5+ {[%clk 0:01:25]}  Ke5 {[%clk 0:01:58]} 51. Bf3 {[%clk 0:01:22]}  f5 {[%clk 0:01:56]} 52. b7 {[%clk 0:01:22]}  Rxb7 {[%clk 0:01:57]} 53. Kxb7 {[%clk 0:01:23]}  g4 {[%clk 0:01:57]} 54. Be2 {[%clk 0:01:21]}  Ke4 {[%clk 0:01:56]} 55. Kc6 {[%clk 0:01:21]}  f4 {[%clk 0:01:57]} 56. Bxg4 {[%clk 0:01:14]}  f3 {[%clk 0:01:57]} 0-1


[Site "https://www.chess.com"]

[Event "Titled Tuesday Blitz March 14 Late 2023"]
[White "Fule, Simon"]
[Black "Romkachess"]
[WhiteFideId "787515"]
[WhiteElo "2390"]
[BlackElo "2554"]
[Result "0-1"]
[Round "09"]
[TimeControl "180+2"]
[Date "2023.03.14"]
[WhiteClock "0:00:02"]
[BlackClock "0:00:02"]

1. e4 {[%clk 0:03:00]}  c5 {[%clk 0:02:59]} 2. Nf3 {[%clk 0:03:00]}  d6 {[%clk 0:02:59]} 3. d4 {[%clk 0:03:01]}  cxd4 {[%clk 0:03:00]} 4. Nxd4 {[%clk 0:03:01]}  Nf6 {[%clk 0:03:00]} 5. Nc3 {[%clk 0:03:02]}  a6 {[%clk 0:03:01]} 6. f3 {[%clk 0:03:01]}  e5 {[%clk 0:02:59]} 7. Nb3 {[%clk 0:03:02]}  Be6 {[%clk 0:02:57]} 8. Be3 {[%clk 0:03:01]}  Nbd7 {[%clk 0:02:58]} 9. Qd2 {[%clk 0:03:00]}  h5 {[%clk 0:02:58]} 10. Nd5 {[%clk 0:02:57]}  Bxd5 {[%clk 0:02:57]} 11. exd5 {[%clk 0:02:58]}  g6 {[%clk 0:02:50]} 12. Be2 {[%clk 0:02:56]}  Bg7 {[%clk 0:02:49]} 13. c4 {[%clk 0:02:47]}  b6 {[%clk 0:02:48]} 14. O-O {[%clk 0:02:45]}  a5 {[%clk 0:02:47]} 15. Rae1 {[%clk 0:02:42]}  O-O {[%clk 0:02:47]} 16. Qd1 {[%clk 0:02:35]}  Nh7 {[%clk 0:02:42]} 17. Bd3 {[%clk 0:02:31]}  Bf6 {[%clk 0:02:40]} 18. Nd2 {[%clk 0:02:26]}  Bg5 {[%clk 0:02:39]} 19. Bf2 {[%clk 0:02:24]}  f5 {[%clk 0:02:36]} 20. Kh1 {[%clk 0:02:10]}  Nc5 {[%clk 0:02:17]} 21. Bb1 {[%clk 0:02:07]}  Nf6 {[%clk 0:02:03]} 22. b3 {[%clk 0:01:53]}  Kg7 {[%clk 0:01:57]} 23. Bc2 {[%clk 0:01:46]}  h4 {[%clk 0:01:54]} 24. a3 {[%clk 0:01:40]}  h3 {[%clk 0:01:38]} 25. g3 {[%clk 0:01:26]}  Re8 {[%clk 0:01:11]} 26. Nb1 {[%clk 0:01:23]}  e4 {[%clk 0:01:03]} 27. f4 {[%clk 0:01:22]}  Bh6 {[%clk 0:01:02]} 28. Nc3 {[%clk 0:01:03]}  Ng4 {[%clk 0:00:56]} 29. Bd4+ {[%clk 0:01:00]}  Kh7 {[%clk 0:00:55]} 30. Nb5 {[%clk 0:00:57]}  e3 {[%clk 0:00:49]} 31. Qf3 {[%clk 0:00:33]}  Qe7 {[%clk 0:00:36]} 32. b4 {[%clk 0:00:27]}  axb4 {[%clk 0:00:33]} 33. axb4 {[%clk 0:00:28]}  Ne4 {[%clk 0:00:25]} 34. Bxb6 {[%clk 0:00:20]}  Nd2 {[%clk 0:00:18]} 35. Qe2 {[%clk 0:00:20]}  Nxf1 {[%clk 0:00:17]} 36. Rxf1 {[%clk 0:00:21]}  Ra2 {[%clk 0:00:15]} 37. Nc3 {[%clk 0:00:15]}  Nf2+ {[%clk 0:00:12]} 38. Kg1 {[%clk 0:00:13]}  Rb2 {[%clk 0:00:12]} 39. b5 {[%clk 0:00:11]}  Bg7 {[%clk 0:00:08]} 40. Na4 {[%clk 0:00:09]}  Ng4 {[%clk 0:00:04]} 41. Nxb2 {[%clk 0:00:08]}  Bxb2 {[%clk 0:00:03]} 42. Ba5 {[%clk 0:00:06]}  Bd4 {[%clk 0:00:03]} 43. Bb4 {[%clk 0:00:06]}  Qc7 {[%clk 0:00:02]} 44. Rb1 {[%clk 0:00:03]}  Bb6 {[%clk 0:00:03]} 45. Bc3 {[%clk 0:00:02]}  Ra8 {[%clk 0:00:02]} 46. Ra1 {[%clk 0:00:02]}  Rxa1+ {[%clk 0:00:02]} 47. Bxa1 {[%clk 0:00:03]}  Qa7 {[%clk 0:00:03]} 48. Bb2 {[%clk 0:00:03]}  Qa2 {[%clk 0:00:03]} 49. Bd3 {[%clk 0:00:03]}  Qb3 {[%clk 0:00:03]} 50. Kf1 {[%clk 0:00:02]}  Qb4 {[%clk 0:00:03]} 51. Qe1 {[%clk 0:00:01]}  Qc5 {[%clk 0:00:03]} 52. Qe2 {[%clk 0:00:02]}  Qb4 {[%clk 0:00:02]} 0-1


[Site "https://www.chess.com"]

[Event "Titled Tuesday Blitz March 14 Late 2023"]
[White "Leonte, Sebastian-Marian"]
[Black "Omelja, Artem"]
[WhiteFideId "1268767"]
[BlackFideId "14119846"]
[WhiteElo "2351"]
[BlackElo "2404"]
[Result "0-1"]
[Round "09"]
[TimeControl "180+2"]
[Date "2023.03.14"]
[WhiteClock "0:00:16"]
[BlackClock "0:01:32"]

1. e4 {[%clk 0:03:00]}  c5 {[%clk 0:02:58]} 2. Nf3 {[%clk 0:03:00]}  Nc6 {[%clk 0:02:57]} 3. d4 {[%clk 0:03:00]}  cxd4 {[%clk 0:02:58]} 4. Nxd4 {[%clk 0:03:01]}  Nf6 {[%clk 0:02:58]} 5. Nc3 {[%clk 0:03:01]}  e5 {[%clk 0:02:59]} 6. Ndb5 {[%clk 0:03:01]}  d6 {[%clk 0:02:59]} 7. Bg5 {[%clk 0:03:01]}  a6 {[%clk 0:02:59]} 8. Na3 {[%clk 0:03:01]}  b5 {[%clk 0:02:59]} 9. Nd5 {[%clk 0:03:02]}  Be7 {[%clk 0:03:00]} 10. Bxf6 {[%clk 0:03:02]}  Bxf6 {[%clk 0:03:00]} 11. c3 {[%clk 0:03:03]}  O-O {[%clk 0:03:00]} 12. Nc2 {[%clk 0:03:03]}  Bg5 {[%clk 0:03:00]} 13. a4 {[%clk 0:03:01]}  bxa4 {[%clk 0:02:58]} 14. Rxa4 {[%clk 0:03:02]}  Bb7 {[%clk 0:02:57]} 15. b4 {[%clk 0:02:50]}  Ne7 {[%clk 0:02:57]} 16. Bc4 {[%clk 0:02:50]}  Rc8 {[%clk 0:02:45]} 17. Na3 {[%clk 0:02:22]}  Nxd5 {[%clk 0:02:41]} 18. Bxd5 {[%clk 0:02:23]}  Bxd5 {[%clk 0:02:40]} 19. Qxd5 {[%clk 0:02:23]}  Rxc3 {[%clk 0:02:41]} 20. O-O {[%clk 0:02:21]}  Qb6 {[%clk 0:02:36]} 21. g3 {[%clk 0:01:35]}  h6 {[%clk 0:02:19]} 22. Rd1 {[%clk 0:01:25]}  Rd8 {[%clk 0:02:01]} 23. b5 {[%clk 0:00:41]}  axb5 {[%clk 0:01:55]} 24. Qxb5 {[%clk 0:00:37]}  Be3 {[%clk 0:01:44]} 25. Qxb6 {[%clk 0:00:28]}  Bxb6 {[%clk 0:01:45]} 26. Nc4 {[%clk 0:00:28]}  Bd4 {[%clk 0:01:45]} 27. Ne3 {[%clk 0:00:20]}  Bxe3 {[%clk 0:01:43]} 28. fxe3 {[%clk 0:00:20]}  Rxe3 {[%clk 0:01:43]} 29. Kf2 {[%clk 0:00:21]}  Rc3 {[%clk 0:01:43]} 30. Ra6 {[%clk 0:00:20]}  Rc2+ {[%clk 0:01:39]} 31. Kf3 {[%clk 0:00:20]}  Rxh2 {[%clk 0:01:38]} 32. Raxd6 {[%clk 0:00:20]}  Rxd6 {[%clk 0:01:39]} 33. Rxd6 {[%clk 0:00:20]}  f6 {[%clk 0:01:40]} 34. Kg4 {[%clk 0:00:20]}  Kh7 {[%clk 0:01:40]} 35. Rd7 {[%clk 0:00:19]}  Kg6 {[%clk 0:01:40]} 36. Ra7 {[%clk 0:00:19]}  Rf2 {[%clk 0:01:38]} 37. Ra4 {[%clk 0:00:18]}  h5+ {[%clk 0:01:37]} 38. Kh3 {[%clk 0:00:19]}  Kh6 {[%clk 0:01:34]} 39. Rb4 {[%clk 0:00:19]}  g5 {[%clk 0:01:34]} 40. g4 {[%clk 0:00:17]}  Rf3+ {[%clk 0:01:34]} 41. Kg2 {[%clk 0:00:17]}  hxg4 {[%clk 0:01:35]} 42. Rc4 {[%clk 0:00:17]}  Rf4 {[%clk 0:01:35]} 43. Kg3 {[%clk 0:00:16]}  Kh5 {[%clk 0:01:32]} 44. Rb4 {[%clk 0:00:16]}  Rf3+ {[%clk 0:01:32]} 45. Kg2 {[%clk 0:00:17]}  Re3 {[%clk 0:01:32]} 46. Rb6 {[%clk 0:00:16]}  Kg6 {[%clk 0:01:32]} 47. Rb4 {[%clk 0:00:16]}  Rd3 {[%clk 0:01:32]} 48. Kf2 {[%clk 0:00:16]}  Rd4 {[%clk 0:01:32]} 0-1


[Site "https://www.chess.com"]

[Event "Titled Tuesday Blitz March 14 Late 2023"]
[White "Quispe Santacruz, Javier"]
[Black "Jovic, Stanoje"]
[WhiteFideId "3800920"]
[BlackFideId "905020"]
[WhiteElo "1875"]
[BlackElo "2236"]
[Result "0-1"]
[Round "09"]
[TimeControl "180+2"]
[Date "2023.03.14"]
[WhiteClock "0:00:57"]
[BlackClock "0:01:58"]

1. d4 {[%clk 0:02:53]}  Nf6 {[%clk 0:02:59]} 2. c4 {[%clk 0:02:53]}  e6 {[%clk 0:02:59]} 3. Nf3 {[%clk 0:02:52]}  b6 {[%clk 0:02:59]} 4. g3 {[%clk 0:02:52]}  Ba6 {[%clk 0:02:59]} 5. b3 {[%clk 0:02:52]}  Bb4+ {[%clk 0:02:59]} 6. Bd2 {[%clk 0:02:50]}  Be7 {[%clk 0:02:59]} 7. Bg2 {[%clk 0:02:51]}  d5 {[%clk 0:02:58]} 8. Bc3 {[%clk 0:02:49]}  c6 {[%clk 0:02:57]} 9. Nbd2 {[%clk 0:02:48]}  Nbd7 {[%clk 0:02:52]} 10. O-O {[%clk 0:02:44]}  O-O {[%clk 0:02:52]} 11. Re1 {[%clk 0:02:44]}  Rc8 {[%clk 0:02:51]} 12. e4 {[%clk 0:02:43]}  dxe4 {[%clk 0:02:51]} 13. Nxe4 {[%clk 0:02:44]}  Nxe4 {[%clk 0:02:51]} 14. Rxe4 {[%clk 0:02:44]}  Bf6 {[%clk 0:02:51]} 15. Qc2 {[%clk 0:02:31]}  c5 {[%clk 0:02:45]} 16. Rd1 {[%clk 0:02:27]}  cxd4 {[%clk 0:02:33]} 17. Bxd4 {[%clk 0:02:21]}  Qc7 {[%clk 0:02:28]} 18. Bxf6 {[%clk 0:02:14]}  Nxf6 {[%clk 0:02:27]} 19. Red4 {[%clk 0:02:14]}  Rfd8 {[%clk 0:02:26]} 20. Rxd8+ {[%clk 0:02:07]}  Rxd8 {[%clk 0:02:26]} 21. Rxd8+ {[%clk 0:02:05]}  Qxd8 {[%clk 0:02:26]} 22. Qd2 {[%clk 0:02:04]}  Qxd2 {[%clk 0:02:24]} 23. Nxd2 {[%clk 0:02:05]}  Kf8 {[%clk 0:02:24]} 24. Ne4 {[%clk 0:02:00]}  Nxe4 {[%clk 0:02:23]} 25. Bxe4 {[%clk 0:01:59]}  Ke7 {[%clk 0:02:21]} 26. f4 {[%clk 0:01:59]}  h6 {[%clk 0:02:19]} 27. Kf2 {[%clk 0:01:58]}  Kd6 {[%clk 0:02:19]} 28. Ke3 {[%clk 0:01:57]}  e5 {[%clk 0:02:17]} 29. Bd5 {[%clk 0:01:49]}  f5 {[%clk 0:02:10]} 30. b4 {[%clk 0:01:16]}  g5 {[%clk 0:02:03]} 31. h4 {[%clk 0:01:12]}  exf4+ {[%clk 0:01:58]} 32. gxf4 {[%clk 0:01:08]}  gxh4 {[%clk 0:01:58]} 33. Kf2 {[%clk 0:00:57]}  b5 {[%clk 0:01:58]} 0-1


[Site "https://www.chess.com"]

[Event "Titled Tuesday Blitz March 14 Late 2023"]
[White "Winslow, Elliott"]
[Black "Popov, Mikhail"]
[WhiteFideId "2002523"]
[BlackFideId "4146182"]
[WhiteElo "2229"]
[BlackElo "2270"]
[Result "0-1"]
[Round "09"]
[TimeControl "180+2"]
[Date "2023.03.14"]
[WhiteClock "0:01:38"]
[BlackClock "0:01:22"]

1. d4 {[%clk 0:02:54]}  Nf6 {[%clk 0:02:55]} 2. c4 {[%clk 0:02:54]}  g6 {[%clk 0:02:55]} 3. Nc3 {[%clk 0:02:53]}  Bg7 {[%clk 0:02:55]} 4. e4 {[%clk 0:02:52]}  d6 {[%clk 0:02:56]} 5. f3 {[%clk 0:02:53]}  O-O {[%clk 0:02:56]} 6. Be3 {[%clk 0:02:52]}  a6 {[%clk 0:02:54]} 7. Qd2 {[%clk 0:02:44]}  Nc6 {[%clk 0:02:52]} 8. Nge2 {[%clk 0:02:41]}  Na5 {[%clk 0:02:45]} 9. Ng3 {[%clk 0:02:30]}  b5 {[%clk 0:02:44]} 10. b3 {[%clk 0:02:22]}  c5 {[%clk 0:02:09]} 11. Be2 {[%clk 0:02:11]}  bxc4 {[%clk 0:01:31]} 12. dxc5 {[%clk 0:02:03]}  dxc5 {[%clk 0:01:24]} 13. Qxd8 {[%clk 0:01:55]}  Rxd8 {[%clk 0:01:24]} 14. Bxc5 {[%clk 0:01:54]}  Nd7 {[%clk 0:01:24]} 15. Bb4 {[%clk 0:01:38]}  Nc6 {[%clk 0:01:22]} 0-1


[Site "https://www.chess.com"]